Cogmind - Beta 14 @@@ ROGUE MODE // 2025.03.16 @ 20:04:23 Player: Edited09 Result: Destroyed by H-55 Commando with Assault Rifle Performance ------------- Evolutions (3) 1500 Regions Visited (8) 1600 Robots Destroyed (82) 410 Value Destroyed (2749) 2749 Prototype IDs (24) 480 Alien Tech Used (0) 0 Bonus (402) 402 TOTAL SCORE: 7141 Bonus ------- High Alert Combat Kills 67 Follower Combat Kills 35 Aligned with FarCom 300 Cogmind --------- Core Integrity 0/700 Matter 263/300 Energy 150/150 System Corruption 7% Temperature Cool (0) Movement Core (250) Ox4 Location -7/Factory Parts ------- > --- POWER (2) -------- Micro Nuclear Core > --- PROPULSION (4) --- (None) > --- UTILITY (5) ------ Small Storage Unit Hacking Suite > --- WEAPON (2) ------- Power Maul > --- INVENTORY (8) ---- Light Nuclear Core Light Nuclear Core Insulated Plating Gauss Rifle Axe Peak State ------------ > --- POWER ------------ Micro Nuclear Core Micro Nuclear Core > --- PROPULSION ------- Armored Huge Wheel Gravmag System Gravmag System > --- UTILITY ---------- Small Storage Unit Trap Scanner Improved Terrain Scanner Hardened Heavy Armor Plating > --- WEAPON ----------- Gauss Rifle Power Maul > --- INVENTORY -------- Light Nuclear Core Light Nuclear Core Light Nuclear Core Weapon Cycler Layered Light Armor Plating Hacking Suite Gauss Rifle Chainsword [Rating: 49] Favorites ----------- Power Light Deuterium Engine Engine Light Deuterium Engine Power Core Micro Nuclear Core Propulsion Aerolev Unit Treads Light Treads Leg Aluminum Leg Wheel Armored Huge Wheel Hover Unit Aerolev Unit Flight Unit Cesium-ion Thruster Utility Small Storage Unit Device Structural Scanner Storage Small Storage Unit Processor Transport Network Coupler Hackware Hacking Suite Protection Power Shielding Weapon Minigun Ballistic Gun Minigun Launcher Improved Grenade Launcher Impact Weapon Power Maul Slashing Weapon Chainsword Build | -11 -10 -10 -9 -9 -9 -8 -8 -7 ------- Run | Yrd Mat Min Mat Min Exi Min Mat Fac Slots Evolved 6 | . . . 2 . . . 2 2 Power 1 | . . . . . . . . 1 Propulsion 2 | . . . . . . . 2 . Utility 3 | . . . 2 . . . . 1 Weapon . | . . . . . . . . . Parts Attached 81 | 6 1 3 13 1 2 1 17 37 Power 19 | 1 . 1 2 . . . 2 13 Engine 8 | 1 . 1 2 . . . 1 3 Core 11 | . . . . . . . 1 10 Reactor . | . . . . . . . . . Propulsion 16 | 2 . . 4 . . . 5 5 Treads 2 | . . . 2 . . . . . Leg 3 | 2 . . . . . . 1 . Wheel 4 | . . . . . . . 2 2 Hover 6 | . . . 2 . . . 1 3 Flight 1 | . . . . . . . 1 . Utility 22 | 1 1 . 3 . . . 7 10 Device 6 | . 1 . . . . . 2 3 Storage 2 | 1 . . . . . . . 1 Processor 2 | . . . 1 . . . . 1 Hackware 2 | . . . . . . . 1 1 Protection 10 | . . . 2 . . . 4 4 Artifact . | . . . . . . . . . Weapon 24 | 2 . 2 4 1 2 1 3 9 Energy Gun . | . . . . . . . . . Energy Cannon . | . . . . . . . . . Ballistic Gun 17 | 2 . 1 4 . 2 . 3 5 Ballistic Cannon . | . . . . . . . . . Launcher 3 | . . 1 . 1 . 1 . . Special Weapon . | . . . . . . . . . Impact Weapon 2 | . . . . . . . . 2 Slashing Weapon 2 | . . . . . . . . 2 Piercing Weapon . | . . . . . . . . . Special Melee Weapon . | . . . . . . . . . Unidentified Prototypes 1 | . . . 1 . . . . . Parts Lost 34 | . . . 2 . . 1 8 23 Power 7 | . . . . . . . 1 6 Propulsion 8 | . . . . . . . 3 5 Utility 10 | . . . 1 . . . 2 7 Weapon 9 | . . . 1 . . 1 2 5 Highest Loss Streak 10 | . . . 2 . . 1 6 10 To Critical Strikes . | . . . . . . . . . Average Slot Usage (%) 87 | . 97 100 93 100 100 100 73 76 Engine 8 | . 14 14 11 11 11 11 6 3 Core 3 | . . . . . . . 2 10 Leg 3 | . 28 28 4 . . . 3 . Wheel 3 | . . . . . . . 3 9 Hover 11 | . . . 8 22 22 22 8 4 Device 12 | . 11 14 11 11 11 11 12 14 Storage 9 | . 14 14 11 11 11 11 9 7 Processor 3 | . . . 1 11 11 11 . . Protection 9 | . . . 15 11 11 11 9 8 Ballistic Gun 12 | . 28 14 16 11 11 11 14 10 Launcher 5 | . . 13 5 11 11 11 2 . Peak Build Rating 49 | 6 7 8 23 23 27 23 37 49 Average Rating 26 | 4 6 7 15 23 22 23 25 42 On Entrance 16 | . 6 7 8 23 23 23 23 37 Naked Turns . | . . . . . . . . . Heaviest Build 47 | 11 12 15 24 21 21 21 32 47 Greatest Support 56 | 20 20 20 40 16 16 16 56 56 Greatest Overweight (x) 6 | . . . 2 1 1 1 6 4 Average Overweight (x) . | . . . . 1 1 1 . . Largest Inventory Capacity 8 | 8 8 8 8 8 8 8 8 8 Average Capacity 7 | 6 8 8 8 8 8 8 8 8 Most Carried 8 | 1 4 7 8 8 8 8 8 8 Average Carried 7 | . 2 5 7 8 7 7 7 7 Final Capacity 8 | 8 8 8 8 8 8 8 8 8 Final Carried 8 | 1 4 7 8 8 8 8 8 5 Class Distribution -------------------- 51% | Mutant 36% | Skirmisher 10% | Assassin Dominant Class ---------------- Mutant | -10/Materials Mutant | -10/Mines Mutant | -9/Materials Mutant | -9/Mines Mutant | -9/Exiles Skirmisher | -8/Mines Skirmisher | -8/Materials Assassin | -7/Factory Resources | -11 -10 -10 -9 -9 -9 -8 -8 -7 ----------- Run | Yrd Mat Min Mat Min Exi Min Mat Fac Matter Collected 2683 | 231 55 120 325 253 . 137 486 1076 Remotely . | . . . . . . . . . Salvage Created 2608 | . 11 17 399 276 . 248 463 1194 Parts 177 | . 1 . 48 20 . 13 29 66 Haulers Intercepted . | . . . . . . . . . Recyclers Shooed . | . . . . . . . . . Parts Field Recycled . | . . . . . . . . . Retrieved Matter . | . . . . . . . . . Parts Self-Destructed . | . . . . . . . . . Prevented . | . . . . . . . . . Kills | -11 -10 -10 -9 -9 -9 -8 -8 -7 ------- Run | Yrd Mat Min Mat Min Exi Min Mat Fac Combat Hostiles Destroyed 71 | . . 2 17 10 . 9 9 24 Melee 4 | . . . . . . . . 4 Guns 42 | . . 1 10 3 . 1 7 20 AOE 25 | . . 1 7 7 . 8 2 . Classes Destroyed 11 | . 1 1 4 . . 1 1 3 Worker 4 | . . . 3 . . . . 1 Recycler 1 | . . . . . . . . 1 Operator 3 | . 1 . 2 . . . . . Watcher 3 | . . . 1 . . . 1 1 Swarmer 20 | . . . 11 3 . 3 . 3 Grunt 35 | . . 2 4 7 . 4 3 15 Brawler 2 | . . . . . . 2 . . Duelist 2 | . . . . . . . . 2 Sentry 8 | . . . 2 . . . 5 1 Hunter 1 | . . . . . . . 1 . Programmer 3 | . . . . . . . . 3 Best Kill Streak 9 | . 1 2 9 3 . 5 2 5 Combat Bots Only 5 | . . 2 4 3 . 5 2 5 Max Kills in Single Turn 3 | . 1 1 3 2 . 3 1 1 Gunslinging . | . . . . . . . . . Exploded 3 | . . 1 3 2 . 3 1 . Melee 1 | . . . . . . . . 1 Uniques/NPCs Destroyed . | . . . . . . . . . Combat | -11 -10 -10 -9 -9 -9 -8 -8 -7 -------- Run | Yrd Mat Min Mat Min Exi Min Mat Fac Hostile Shots Fired 593 | . 5 14 84 14 . 12 78 386 Missed 184 | . 2 4 35 5 . 2 28 108 Damage Taken 6366 | . 32 169 501 109 . 146 1026 4383 Core 1041 | . 10 12 61 9 . 46 201 702 Absorbed by Shields . | . . . . . . . . . Redirected to Shielding 7 | . . . 7 . . . . . Core Remaining (%) 81 | 100 . 91 . . . 71 63 . Volleys Fired 282 | . 4 8 48 14 . 15 72 121 Largest 2 | . 2 2 2 2 . 2 2 2 Hottest 61 | . 40 53 56 61 . 61 61 56 Shots Fired 413 | . 8 14 69 17 . 19 105 181 Gun 387 | . 8 8 60 12 . 15 103 181 Cannon . | . . . . . . . . . Launcher 26 | . . 6 9 5 . 4 2 . Special . | . . . . . . . . . Kinetic 387 | . 8 8 60 12 . 15 103 181 Thermal . | . . . . . . . . . Explosive 26 | . . 6 9 5 . 4 2 . Electromagnetic . | . . . . . . . . . Robot Hit Streak 12 | . 4 2 10 12 . 4 8 6 Robot Miss Streak 8 | . 1 4 5 1 . 2 4 8 Penetration Max 1 | . . . . . . . . 1 Secondary Targets 2 | . . . . . . . . 2 Max Gunslinging Chain 1 | . . . . . . . . 1 Shots Hit Robots 245 | . 6 6 37 14 . 7 62 113 Core Hits 153 | . 2 6 35 17 . 14 23 56 Critical Kills . | . . . . . . . . . Critical Parts Destroyed 3 | . . . . . . . 1 2 Critical Strikes 3 | . . . . . . . 1 2 Destroy 2 | . . . . . . . 1 1 Smash 1 | . . . . . . . . 1 Melee Attacks 19 | . . . . . . . . 19 Impact 5 | . . . . . . . . 5 Slashing 14 | . . . . . . . . 14 Piercing . | . . . . . . . . . Sneak Attacks . | . . . . . . . . . Combat Hostiles . | . . . . . . . . . Follow-up Attacks . | . . . . . . . . . Damage Inflicted 6587 | . 58 354 1131 605 . 660 1137 2642 Guns 4080 | . 58 38 521 148 . 129 990 2196 Cannons . | . . . . . . . . . Explosions 2061 | . . 316 610 457 . 531 147 . Melee 446 | . . . . . . . . 446 Ramming . | . . . . . . . . . Kinetic 4080 | . 58 38 521 148 . 129 990 2196 Thermal 152 | . . . . . . 152 . . Explosive 1909 | . . 316 610 457 . 379 147 . Electromagnetic . | . . . . . . . . . Impact 170 | . . . . . . . . 170 Slashing 276 | . . . . . . . . 276 Piercing . | . . . . . . . . . Highest Corruption 7 | . . . . . . . 6 7 Average Corruption 3 | . . . . . . . 4 2 Corruption Purged . | . . . . . . . . . Corruption Blocked . | . . . . . . . . . Effects 31 | . . . . . . . 15 16 Message Errors 5 | . . . . . . . 1 4 Matter Fused 7 | . . . . . . . 4 3 Heat Flow Errors 3 | . . . . . . . 1 2 Energy Discharges 2 | . . . . . . . 1 1 Parts Rejected 3 | . . . . . . . 1 2 Parts Fused 1 | . . . . . . . 1 . Data Loss (minor) 5 | . . . . . . . 3 2 Data Loss (major) 1 | . . . . . . . 1 . Misfires 3 | . . . . . . . 2 1 Alerts 1 | . . . . . . . . 1 Overload Shots . | . . . . . . . . . Overflow Damage 66 | . . . . 3 . . . 63 Projectiles . | . . . . . . . . . Explosions 3 | . . . . 3 . . . . Melee 63 | . . . . . . . . 63 Knockbacks 1 | . . . . . . . . 1 Impact 1 | . . . . . . . . 1 Kinetic . | . . . . . . . . . Secondary . | . . . . . . . . . Self-Inflicted Damage 84 | . . 30 54 . . . . . Shots 3 | . . 1 2 . . . . . Rammed . | . . . . . . . . . Targets Rammed . | . . . . . . . . . Kicked . | . . . . . . . . . Crushed . | . . . . . . . . . Highest Temperature 544 | . . 12 36 44 . 32 240 544 Average Temperature 92 | . . 6 9 16 . 13 22 135 Received Heat Transfer 2184 | . 18 78 96 45 . 81 162 1704 Effects 8 | . . . . . . . . 8 Shutdowns 4 | . . . . . . . . 4 Interference 3 | . . . . . . . . 3 Damage (minor) 1 | . . . . . . . . 1 Siege Activations . | . . . . . . . . . Robots Corrupted 1 | . . . . . . . . 1 Combat Hostiles . | . . . . . . . . . Parts Fried 1 | . . . . . . . . 1 Impact Corruptions 3 | . . . . . . . . 3 Robots Melted . | . . . . . . . . . Combat Hostiles . | . . . . . . . . . Parts Melted . | . . . . . . . . . Heat Transferred 150 | . . . . . . 150 . . Parts Sabotaged . | . . . . . . . . . Parts Stolen . | . . . . . . . . . Parts Stripped . | . . . . . . . . . Power Chain Reactions . | . . . . . . . . . Alert | -11 -10 -10 -9 -9 -9 -8 -8 -7 ------- Run | Yrd Mat Min Mat Min Exi Min Mat Fac Peak Influence 554 | . 5 83 554 513 . 145 246 283 Initial 138 | . . 1 31 138 . . 40 43 Average 161 | . 1 55 332 368 . 17 123 148 Maximum Alert Level 2 | . . . 2 2 . . 1 1 Low Security (%) 68 | 100 100 100 15 . . 100 85 80 Level 1 25 | . . . 53 76 . . 14 19 Level 2 6 | . . . 30 23 . . . . Level 3 . | . . . . . . . . . Level 4 . | . . . . . . . . . Level 5 . | . . . . . . . . . High Security . | . . . . . . . . . Max Security . | . . . . . . . . . Squads Dispatched 13 | . 2 . 2 . . . 1 8 Investigation 1 | . 1 . . . . . . . Extermination 3 | . . . . . . . . 3 Reinforcement 6 | . 1 . 2 . . . 1 2 Assault . | . . . . . . . . . Garrison 3 | . . . . . . . . 3 Intercept . | . . . . . . . . . Searches Triggered . | . . . . . . . . . Construction Impeded 1 | . . . 1 . . . . . Haulers Reinforced 1 | . . . . . . . . 1 Active Scanning Responses . | . . . . . . . . . Cargo Convoy Interrupts 1 | . . . . . . . . 1 Stealth | -11 -10 -10 -9 -9 -9 -8 -8 -7 --------- Run | Yrd Mat Min Mat Min Exi Min Mat Fac Distress Signals 8 | . . . 1 . . . 4 3 Communications Jammed . | . . . . . . . . . Distress Signals . | . . . . . . . . . Times Spotted 124 | . 4 2 21 11 . 7 23 56 Peak Tracking Total 14 | . 2 2 4 3 . 5 5 14 Tactical Retreats 9 | . . . . . . . 3 6 Traps | -11 -10 -10 -9 -9 -9 -8 -8 -7 ------- Run | Yrd Mat Min Mat Min Exi Min Mat Fac Traps Triggered 6 | . 1 . . . . . 4 1 Indirectly . | . . . . . . . . . Trap Hack Attempts . | . . . . . . . . . Triggered . | . . . . . . . . . Disarmed . | . . . . . . . . . Reprogrammed . | . . . . . . . . . Reused . | . . . . . . . . . Traps Extracted . | . . . . . . . . . Installed . | . . . . . . . . . Triggered 1 | . . . . . . . . 1 Machines | -11 -10 -10 -9 -9 -9 -8 -8 -7 ---------- Run | Yrd Mat Min Mat Min Exi Min Mat Fac Machines Disabled 8 | . . . . 3 . 1 2 2 Max in Single Turn 2 | . . . . 2 . 1 1 1 Machines Repaired . | . . . . . . . . . Machines Dismantled . | . . . . . . . . . Machines Sabotaged . | . . . . . . . . . Overloaded Fab Kills . | . . . . . . . . . Hacking | -11 -10 -10 -9 -9 -9 -8 -8 -7 --------- Run | Yrd Mat Min Mat Min Exi Min Mat Fac Machines Accessed 1 | . . . . . 1 . . . Terminals . | . . . . . . . . . Fabricators . | . . . . . . . . . Repair Stations . | . . . . . . . . . Recycling Units . | . . . . . . . . . Scanalyzers . | . . . . . . . . . Garrison Access . | . . . . . . . . . Total Hacks 1 | . . . . . 1 . . . Successful 1 | . . . . . 1 . . . Failed . | . . . . . . . . . Catastrophic . | . . . . . . . . . Database Lockouts . | . . . . . . . . . Manual 1 | . . . . . 1 . . . Terminals . | . . . . . . . . . Fabricators . | . . . . . . . . . Repair Stations . | . . . . . . . . . Recycling Units . | . . . . . . . . . Scanalyzers . | . . . . . . . . . Garrison Access . | . . . . . . . . . Terminal Hacks 1 | . . . . . 1 . . . Derelict Proto ID Bank 1 | . . . . . 1 . . . Fabricator Hacks . | . . . . . . . . . Repair Station Hacks . | . . . . . . . . . Recycling Unit Hacks . | . . . . . . . . . Scanalyzer . | . . . . . . . . . Garrison Access Hacks . | . . . . . . . . . Unauthorized Hacks . | . . . . . . . . . Terminals . | . . . . . . . . . Fabricators . | . . . . . . . . . Repair Stations . | . . . . . . . . . Recycling Units . | . . . . . . . . . Scanalyzers . | . . . . . . . . . Garrison Access . | . . . . . . . . . Data Cores Recovered . | . . . . . . . . . Used . | . . . . . . . . . Hacking Detections . | . . . . . . . . . Full Trace Events . | . . . . . . . . . Feedback Events . | . . . . . . . . . Feedback Blocked . | . . . . . . . . . Robot Schematics Acquired . | . . . . . . . . . Robots Built . | . . . . . . . . . Authchips . | . . . . . . . . . Time . | . . . . . . . . . Total Robot Build Rating . | . . . . . . . . . Part Schematics Acquired . | . . . . . . . . . Parts Built . | . . . . . . . . . Authchips . | . . . . . . . . . Time . | . . . . . . . . . Total Part Build Rating . | . . . . . . . . . Parts Repaired . | . . . . . . . . . Time . | . . . . . . . . . Parts Recycled . | . . . . . . . . . Recycled Matter . | . . . . . . . . . Retrieved Matter . | . . . . . . . . . Retrieved Components . | . . . . . . . . . Parts Scanalyzed . | . . . . . . . . . Part Schematics Acquired . | . . . . . . . . . Parts Damaged . | . . . . . . . . . Bothacking | -11 -10 -10 -9 -9 -9 -8 -8 -7 ------------ Run | Yrd Mat Min Mat Min Exi Min Mat Fac Used RIF Installer . | . . . . . . . . . Robots Hacked . | . . . . . . . . . Non-combat . | . . . . . . . . . Combat . | . . . . . . . . . Robot Hacks Applied . | . . . . . . . . . Relay Couplers Released . | . . . . . . . . . Fabnet Peak Effective % . | . . . . . . . . . Robots Rewired . | . . . . . . . . . Allies Hacked . | . . . . . . . . . Hacks Repelled . | . . . . . . . . . Allies | -11 -10 -10 -9 -9 -9 -8 -8 -7 -------- Run | Yrd Mat Min Mat Min Exi Min Mat Fac Total Allies 2 | . . . . 2 . . . . Largest Group 2 | . . . . 2 2 . . . Highest-Rated Group 44 | . . . . 44 44 . . . Highest-Rated Ally 31 | . . . . 31 31 . . . Total Orders . | . . . . . . . . . Ally Attacks 7 | . . . . 7 . . . . Total Damage 130 | . . . . 130 . . . . Kills 1 | . . . . 1 . . . . Allies Corrupted . | . . . . . . . . . Allies Melted . | . . . . . . . . . Intel | -11 -10 -10 -9 -9 -9 -8 -8 -7 ------- Run | Yrd Mat Min Mat Min Exi Min Mat Fac Robot Analysis Total . | . . . . . . . . . Derelict Logs Recovered 3 | . . 1 . 2 . . . . Drone Launches . | . . . . . . . . . Drone Recoveries . | . . . . . . . . . Exploration | -11 -10 -10 -9 -9 -9 -8 -8 -7 ------------- Run | Yrd Mat Min Mat Min Exi Min Mat Fac Turns Passed 5210 | 68 176 336 554 695 299 761 922 1399 Spaces Moved 3884 | 55 134 258 322 627 271 687 617 913 Core 15 | 10 . . . . . . 4 1 Treads 92 | . . . 92 . . . . . Legs 631 | 45 134 258 53 . . . 141 . Wheels 980 | . . . . . . . 148 832 Hover 2166 | . . . 177 627 271 687 324 80 Flight . | . . . . . . . . . Fastest Speed 45 | 50 120 120 106 106 106 106 45 100 Average Speed 112 | 107 120 120 128 106 106 106 119 109 Slowest Speed 350 | 120 120 120 240 106 106 106 350 250 Overloaded Moves . | . . . . . . . . . Propulsion Burnouts . | . . . . . . . . . Robots Hopped . | . . . . . . . . . Cave-ins Triggered . | . . . . . . . . . Exploration Rate (%) 44 | 5 19 49 29 98 43 95 38 20 Regions Visited 8 Branch Regions 4 Pre-discovered Areas 2 | . . 1 . 1 . . . . Known Exits Taken . | . . . . . . . . . Unknown Exits Taken 8 | 1 1 1 1 1 1 1 1 . Scrap Searched 3 | . . 1 . 1 . 1 . . Spaces Dug 10 | . . . 10 . . . . . Terrain Destroyed 245 | . . 45 88 47 . 49 16 . Melee . | . . . . . . . . . Projectile . | . . . . . . . . . AOE 245 | . . 45 88 47 . 49 16 . Terrain Rammed . | . . . . . . . . . Walls Destroyed . | . . . . . . . . . Machines Disabled . | . . . . . . . . . Actions | -11 -10 -10 -9 -9 -9 -8 -8 -7 --------- Run | Yrd Mat Min Mat Min Exi Min Mat Fac Total 4352 | 61 141 269 414 642 285 703 718 1119 Wait 1 | . . . . 1 . . . . Move 3876 | 54 133 257 321 626 270 686 616 913 Hop . | . . . . . . . . . Pick Up 45 | 1 3 1 14 . 6 1 5 14 Fast Attach 34 | 6 1 . 7 . . . 9 11 Attach 24 | . . . 2 . . 1 5 16 Detach 3 | . . . . . . . 1 2 Swap 23 | . . 3 4 1 2 . 3 10 Drop 45 | . . . 18 . 7 . 7 13 Fire 282 | . 4 8 48 14 . 15 72 121 Melee 19 | . . . . . . . . 19 Ram . | . . . . . . . . . Kick . | . . . . . . . . . Crush . | . . . . . . . . . Escape Stasis . | . . . . . . . . . Rewire . | . . . . . . . . . Trap . | . . . . . . . . . Miscellaneous . | . . . . . . . . . Route ------- -11/Scrapyard -10/Materials -10/Mines -9/Materials -9/Mines (discovered 3 exits: [*Mat x2] / *Exi) -9/Exiles -8/Mines -8/Materials -7/Factory History --------- Turn | Location | Event 5 | -11/Scrapyard | Discovered new exit (range 15) 69 | -11/Scrapyard | Entered Materials 157 | -10/Materials | Discovered new exit (range 13) 245 | -10/Materials | Entered Mines 245 | -10/Mines | Discovered new exit (range 9) 252 | -10/Mines | Received a Rocket Launcher from a helpful Derelict 276 | -10/Mines | Learned location of Zion (-6) 315 | -10/Mines | Build established: Mutant 526 | -10/Mines | Found DCF Scrap (14 items) 581 | -10/Mines | Entered Materials 581 | -9/Materials | Evolved 2 slots: Utility x2 1078 | -9/Materials | Discovered new exit (range 4) 1135 | -9/Materials | Entered Mines 1384 | -9/Mines | Learned 2 Materials zone layouts 1400 | -9/Mines | Discovered new exit (range 8) 1590 | -9/Mines | Discovered new exit (range 13) 1823 | -9/Mines | Deemed a non-threat by the Exiles lab entrance 1823 | -9/Mines | Discovered new exit (range 6) 1830 | -9/Mines | Entered Exiles 1830 | -9/Exiles | Accompanied by 2 allies 1860 | -9/Exiles | Led the pair of lost Derelicts to a safe place 1872 | -9/Exiles | Met 8R-AWN 1894 | -9/Exiles | Met EX-HEX 1925 | -9/Exiles | Met EX-BIN 1945 | -9/Exiles | Aligned with FarCom system 1946 | -9/Exiles | Given EX-Vault access code 1978 | -9/Exiles | Opened EX-Vault 1985 | -9/Exiles | Found Prototype Device 1987 | -9/Exiles | Identified Army-in-a-Box 2032 | -9/Exiles | Warned to stay clear of 0b10 Research branches 2115 | -9/Exiles | Discovered new exit (range 14) 2129 | -9/Exiles | Entered Mines 2415 | -8/Mines | Build established: Skirmisher 2868 | -8/Mines | Discovered new exit (range 15) 2890 | -8/Mines | Entered Materials 2890 | -8/Materials | Evolved 2 slots: Propulsion x2 3156 | -8/Materials | Lost 6 parts (1p1n2u2w) 3805 | -8/Materials | Discovered new exit (range 5) 3812 | -8/Materials | Entered Factory 3812 | -7/Factory | Evolved 2 slots: Power x1, Utility x1 3868 | -7/Factory | Garrison activated, responded to threat 3908 | -7/Factory | Lost 3 parts (1p1u1w) 4575 | -7/Factory | Build established: Assassin 4890 | -7/Factory | Lost 4 parts (1p1n2u) 5134 | -7/Factory | Build established: Mutant 5168 | -7/Factory | Core integrity fell below 50% 5193 | -7/Factory | Cargo convoy interrupted 5206 | -7/Factory | Core integrity fell below 20% 5211 | -7/Factory | Destroyed by H-55 Commando with Assault Rifle Last Messages --------------- Slug penetrates Wall. R-06 Scavenger collects Particle Gun. Penetrated by Slug. Chainsword destroyed. Acquired Mic. Nuclear Core. Arm. Huge Wheel destroyed. Gauss Rifle destroyed. Lgt. Nuclear Core destroyed. R-06 Scavenger collects Aluminum Leg. K-01 Serf collects debris. R-06 Scavenger collects Aluminum Leg. System corrupted: Trap Scanner rejected. Slug penetrates Wall. Gravmag System destroyed. Imp. Melee Analysis Suite destroyed. Weapon Cycler destroyed. Penetrated by Slug. K-01 Serf collects debris. Slug penetrates Wall. P-60 Hacker destroyed. Map ----- +----------------------------------------------------+ | ?????????????????????????????????????????????????? | | ?????????????????????????????????????????????????? | | ?????????????????????????????????????????????????? | | ?????????????????????????????????????????????????? | | ?????????????????????????????????????????????????? | | ?????????????????????????????????????????????????? | | ?????????????????????????????????????????????????? | | ?????????????????????????????????????????????????? | | ?????????????????????????????????????????????????? | | ?????????????????????????????????????????????????? | | ?????????????????????????????????????????????????? | | ?????????????????????????????????????????????????? | | ?????????????????????????????????????????????????? | | ?????????????????????????????????????????????????? | | ?????????????????????????????????????????????????? | | ?????????? ????????????????????????????????????? | | ?????????? #???????????????????????????????????? | | ?????????? #???????????????????????????????????? | | ?????????# #???????????????????????????????????? | | ?????????# #???????????????????????????????????? | | "????????# #???????????????????????????????????? | | ? ???????# #???????????????????????????????????? | | ""???????# #???????????????????????????????????? | | "" ??????# #??????????##############???????????? | | "" ??????# ############![ r! #???????????? | | ? ?????# u i x@!"""" """" #???????????? | | ###/###### k #%g"""" """" #???????????? | | ## [[ h #h!"""" """" #???????????? | | #[ "" "" [[ h #hh""""g"""" #???????????? | | =# ""T"" [= p #r """" """" #???????????? | | =+ """ i i/% """ """" #???????????? | | #[ # #???????????? | | %# # = #???????????? | | "" # ########### = ! #???????????? | | "F"" # #?????????# ! = #???????????? | | """" # #?????????# #???????????? | | ######### #????????? m ; #######???????????? | | ######### ########## ] ???????????????????? | | * ][??????????????????? | | ] ]]???????????????????? | | """ """ """ """ """] ????????????????????? | | """ """ """ """ """ """ ????????????????????? | | """ """ """ """ """ """ ""??????????????????? | | "" "" "" "??????????????????? | | |= "" "" "" ""?????????????????? | | == ????????????????? | | ????????????????? | | ????????????????? | | ######+####### ###########???????????????????? | | ?????????????###+###?????????????????????????????? | +----------------------------------------------------+ Best States ------------- Heat Dissipation 34 Energy Generation 26 Energy Capacity 350 Matter Stores 300 Matter Capacity 300 Sight Range 16 Terrain Scan Range 16 Terrain Scan Density 10 Jamming Range 12 Armor Coverage 750 Power Shielding 33 Weapon Cycling 15 Evasion (%) 56 Melee Accuracy 6 Recoil Reduction 2 Offensive Hacking 10 Defensive Hacking 10 Item Schematics ----------------- None Robot Schematics ------------------ None Fabricated ------------ Nothing Alien Tech Used ----------------- None Achievements -------------- Power Corrupts Challenges ------------ None Game ------ Seed EtherialContainmentCoupler Manual? 0 Play Time 00:47:04 Cumulative 6.1 hours Start 2025.03.16 @ 19:18:41 End 2025.03.16 @ 20:04:23 Sessions 1 Manual Loads 0 Difficulty Rogue Special Mode None Game No. 16 Rogue 16 Adventurer 0 Explorer 0 Win Type - Total 0 Types 0/0/0/0/0/0/0/0/0 Lore% 7 Gallery% 15 Achievement% 12 Wizard Run 0 Options --------- Layout 0 ASCII 0 Keyboard 0 Movement Arrows Keybinds 0 Fullscreen 1 Font 24/Smallcaps Map View 76x50 Zoom Use 0% Tactical HUD 0 Map Filters NONE Filters NONE Steam 1 RUN: 5944ffeb-0062-4039-895d-6375231ec746